{"text_format":"1","workbook":"xlsx","n_sheets":30,"sheets":["БЮДЖЕТ_НОВЫЙ","ДОХОДЫ_НОВЫЙ","РАСХОДЫ_НОВЫЙ","ПРОГРАММЫ_НОВЫЙ","РП(2)","Лист1","БЮДЖЕТ","ДОХОДЫ","РАСХОДЫ  (2)","РАСХОДЫ ","ПРОГРАММЫ","РП","муниципальные программы","Програм.расходы","ПСР","муниципальные программы(2)","Програм.расходы (2)","ПСР(2)","Дефицит-профицит","%для бюджет","Доходы-расходы","БП","нал.доходы","Ненал.доходы","ДОХОДЫ (2)","%НД","НД","Расходы","Доходы1","Структура"],"not_rendered":{"charts":21,"images":54,"macros":1,"external_links":0,"defined_names":3,"comments":0,"pivot_tables":0},"unopened":[],"bounds":{"document_bytes":16777216,"sheet_cells":100000,"rows_first":2000,"rows_last":500,"rows_between":2000,"halvings":0,"cell_chars":16384,"cell_head_chars":4096},"cells_cut":0,"cells_raw":0,"read":"whole","date_system":"1900"}

{"sheet":"БЮДЖЕТ_НОВЫЙ","index":0,"n_rows":1,"n_cols":1,"rows_kept":1,"cut":false,"hidden":false,"merged":[[0,10,24,11],[6,0,14,4],[15,0,24,4],[6,5,22,9],[23,5,24,9],[3,3,5,6],[3,7,5,9],[0,0,2,9],[3,0,5,2]]}
["                   "]

{"sheet":"ДОХОДЫ_НОВЫЙ","index":1,"n_rows":1,"n_cols":1,"rows_kept":1,"cut":false,"hidden":false,"merged":[[6,3,23,6],[6,7,23,9],[0,0,2,9],[0,10,24,11],[3,0,5,2],[3,3,5,6],[3,7,5,9],[6,0,23,2]]}
["                   "]

{"sheet":"РАСХОДЫ_НОВЫЙ","index":2,"n_rows":1,"n_cols":1,"rows_kept":1,"cut":false,"hidden":false,"merged":[[0,10,24,11],[0,0,2,9],[3,0,5,2],[3,3,5,6],[3,7,5,9],[6,0,14,4],[6,5,22,9],[15,0,24,4],[23,5,24,9]]}
["                   "]

{"sheet":"ПРОГРАММЫ_НОВЫЙ","index":3,"n_rows":1,"n_cols":1,"rows_kept":1,"cut":false,"hidden":false,"merged":[[6,0,7,4],[0,0,2,9],[0,10,24,11],[3,0,4,4]]}
["                   "]

{"sheet":"РП(2)","index":4,"n_rows":18,"n_cols":13,"rows_kept":18,"cut":false,"hidden":true,"merged":[]}
[{"$f":"'Дефицит-профицит'!A1","v":1},{"$f":"INDEX('муниципальные программы(2)'!A2:A4, A1)","v":"2026 г. ПЛАН"}]
["Организация муниципального управления",{"$f":"VLOOKUP(B$1,'ПСР(2)'!$A:$R,MATCH(A2,'ПСР(2)'!$A$1:$R$1,0),0)","v":673326.19892},{"$f":"TEXT(B2,\"# ##0\") & \" тыс. руб.\"","v":"673 326 тыс. руб."},{"$f":"B2/SUM($B$2:$B$17)","v":0.16339697542257756},{"$f":"TEXT(ROUND(D2*100,2),\"# ##0,00\") & \"%\"","v":"16,34%"},null,{"$f":"RANK(B2,$B$2:$B$17,0)+COUNTIF($B$2:B2,B2)-1","v":2},{"$f":"IFERROR(INDEX($A$2:$A$17,MATCH(ROW(A1),$G$2:$G$17,0)),NA())","v":"Развитие образования"},{"$f":"IFERROR(INDEX($B$2:$B$17,MATCH(ROW(A1),$G$2:$G$17,0)),NA())","v":2073727.60247},{"$f":"TEXT(I2,\"# ##0\") & \" тыс. руб.\"","v":"2 073 728 тыс. руб."},{"$f":"I2/SUM($I$2:$I$17)","v":0.50323426986415243},{"$f":"ROUND(K2*100,0)","v":50},{"$f":"L2","v":50}]
["Управление муниципальной собственностью",{"$f":"VLOOKUP(B$1,'ПСР(2)'!$A:$R,MATCH(A3,'ПСР(2)'!$A$1:$R$1,0),0)","v":43864.907950000001},{"$f":"TEXT(B3,\"# ##0\") & \" тыс. руб.\"","v":"43 865 тыс. руб."},{"$f":"B3/SUM($B$2:$B$17)","v":1.0644756282639996E-2},{"$f":"TEXT(ROUND(D3*100,2),\"# ##0,00\") & \"%\"","v":"1,06%"},null,{"$f":"RANK(B3,$B$2:$B$17,0)+COUNTIF($B$2:B3,B3)-1","v":10},{"$f":"IFERROR(INDEX($A$2:$A$17,MATCH(ROW(A2),$G$2:$G$17,0)),NA())","v":"Организация муниципального управления"},{"$f":"IFERROR(INDEX($B$2:$B$17,MATCH(ROW(A2),$G$2:$G$17,0)),NA())","v":673326.19892},{"$f":"TEXT(I3,\"# ##0\") & \" тыс. руб.\"","v":"673 326 тыс. руб."},{"$f":"I3/SUM($I$2:$I$17)","v":0.16339697542257753},{"$f":"ROUND(K3*100,0)","v":16},{"$f":"L3","v":16}]
["Безопасность",{"$f":"VLOOKUP(B$1,'ПСР(2)'!$A:$R,MATCH(A4,'ПСР(2)'!$A$1:$R$1,0),0)","v":80282.034759999995},"80 282 тыс. руб.",1.9482149486526677E-2,"1,95%",null,{"$f":"RANK(B4,$B$2:$B$17,0)+COUNTIF($B$2:B4,B4)-1","v":8},"Поддержка сферы культуры",357626.85677000001,"357 627 тыс. руб.",8.6785790928423701E-2,9,9]
["Дорожное хозяйство",{"$f":"VLOOKUP(B$1,'ПСР(2)'!$A:$R,MATCH(A5,'ПСР(2)'!$A$1:$R$1,0),0)","v":311946.21338999999},"311 946 тыс. руб.",7.5700407683836457E-2,"7,57%",null,{"$f":"RANK(B5,$B$2:$B$17,0)+COUNTIF($B$2:B5,B5)-1","v":4},"Дорожное хозяйство",311946.21338999999,"311 946 тыс. руб.",7.5700407683836443E-2,8,8]
["Физическая культура и спорт",{"$f":"VLOOKUP(B$1,'ПСР(2)'!$A:$R,MATCH(A6,'ПСР(2)'!$A$1:$R$1,0),0)","v":139242.79999999999},"139 243 тыс. руб.",3.3790237786476066E-2,"3,38%",null,{"$f":"RANK(B6,$B$2:$B$17,0)+COUNTIF($B$2:B6,B6)-1","v":6},"Благоустройство территорий",150592.87124000001,"150 593 тыс. руб.",3.6544574858791777E-2,4,4]
["Развитие образования",{"$f":"VLOOKUP(B$1,'ПСР(2)'!$A:$R,MATCH(A7,'ПСР(2)'!$A$1:$R$1,0),0)","v":2073727.60247},"2 073 728 тыс. руб.",0.50323426986415254,"50,32%",null,{"$f":"RANK(B7,$B$2:$B$17,0)+COUNTIF($B$2:B7,B7)-1","v":1},"Физическая культура и спорт",139242.79999999999,"139 243 тыс. руб.",3.3790237786476059E-2,3,3]
["Поддержка сферы культуры",{"$f":"VLOOKUP(B$1,'ПСР(2)'!$A:$R,MATCH(A8,'ПСР(2)'!$A$1:$R$1,0),0)","v":357626.85677000001},"357 627 тыс. руб.",8.6785790928423714E-2,"8,68%",null,{"$f":"RANK(B8,$B$2:$B$17,0)+COUNTIF($B$2:B8,B8)-1","v":3},"Переселение граждан из аварийного жилфонда",129593.25900000001,"129 593 тыс. руб.",3.1448570677509925E-2,3,3]
["Молодежная политика",{"$f":"VLOOKUP(B$1,'ПСР(2)'!$A:$R,MATCH(A9,'ПСР(2)'!$A$1:$R$1,0),0)","v":8885.42},"8 885 тыс. руб.",2.1562368368972054E-3,"0,22%",null,{"$f":"RANK(B9,$B$2:$B$17,0)+COUNTIF($B$2:B9,B9)-1","v":14},"Безопасность",80282.034759999995,"80 282 тыс. руб.",1.9482149486526674E-2,2,2]
["Реализация полномочий в области социальной политики",{"$f":"VLOOKUP(B$1,'ПСР(2)'!$A:$R,MATCH(A10,'ПСР(2)'!$A$1:$R$1,0),0)","v":40162.9},"40 163 тыс. руб.",9.7463850281268374E-3,"0,97%",null,{"$f":"RANK(B10,$B$2:$B$17,0)+COUNTIF($B$2:B10,B10)-1","v":11},"Осуществление бюджетных инвестиций в объекты муниципальной собственности и учреждения бюджетной сферы и муниципальные жилые помещения",61056.51,"61 057 тыс. руб.",1.4816665503080615E-2,1,1]
["Переселение граждан из аварийного жилфонда",{"$f":"VLOOKUP(B$1,'ПСР(2)'!$A:$R,MATCH(A11,'ПСР(2)'!$A$1:$R$1,0),0)","v":129593.25900000001},"129 593 тыс. руб.",3.1448570677509932E-2,"3,14%",null,{"$f":"RANK(B11,$B$2:$B$17,0)+COUNTIF($B$2:B11,B11)-1","v":7},"Управление муниципальной собственностью",43864.907950000001,"43 865 тыс. руб.",1.0644756282639993E-2,1,1]
["Благоустройство территорий",{"$f":"VLOOKUP(B$1,'ПСР(2)'!$A:$R,MATCH(A12,'ПСР(2)'!$A$1:$R$1,0),0)","v":150592.87124000001},"150 593 тыс. руб.",3.6544574858791784E-2,"3,65%",null,{"$f":"RANK(B12,$B$2:$B$17,0)+COUNTIF($B$2:B12,B12)-1","v":5},"Реализация полномочий в области социальной политики",40162.9,"40 163 тыс. руб.",9.7463850281268357E-3,1,1]
["Осуществление бюджетных инвестиций в объекты муниципальной собственности и учреждения бюджетной сферы и муниципальные жилые помещения",{"$f":"VLOOKUP(B$1,'ПСР(2)'!$A:$R,MATCH(A13,'ПСР(2)'!$A$1:$R$1,0),0)","v":61056.51},"61 057 тыс. руб.",1.4816665503080619E-2,"1,48%",null,{"$f":"RANK(B13,$B$2:$B$17,0)+COUNTIF($B$2:B13,B13)-1","v":9},"Развитие коммунального хозяйства",23286.238000000001,"23 286 тыс. руб.",5.6509027337318316E-3,1,1]
["Создание условий для предоставления транспортных услуг населению и организация транспортного обслуживания населения",{"$f":"VLOOKUP(B$1,'ПСР(2)'!$A:$R,MATCH(A14,'ПСР(2)'!$A$1:$R$1,0),0)","v":21968.534350000002},"21 969 тыс. руб.",5.3311338145086672E-3,"0,53%",null,{"$f":"RANK(B14,$B$2:$B$17,0)+COUNTIF($B$2:B14,B14)-1","v":13},"Создание условий для предоставления транспортных услуг населению и организация транспортного обслуживания населения",21968.534350000002,"21 969 тыс. руб.",5.3311338145086663E-3,1,1]
["Развитие коммунального хозяйства",{"$f":"VLOOKUP(B$1,'ПСР(2)'!$A:$R,MATCH(A15,'ПСР(2)'!$A$1:$R$1,0),0)","v":23286.238000000001},"23 286 тыс. руб.",5.6509027337318333E-3,"0,57%",null,{"$f":"RANK(B15,$B$2:$B$17,0)+COUNTIF($B$2:B15,B15)-1","v":12},"Молодежная политика",8885.42,"8 885 тыс. руб.",2.1562368368972049E-3,0,0]
["Обеспечение комплексного пространственного и территориального развития Нижнеилимского муниципального округа Иркутской области",{"$f":"VLOOKUP(B$1,'ПСР(2)'!$A:$R,MATCH(A16,'ПСР(2)'!$A$1:$R$1,0),0)","v":237.30185},"237 тыс. руб.",5.7586359500603806E-5,"0,01%",null,{"$f":"RANK(B16,$B$2:$B$17,0)+COUNTIF($B$2:B16,B16)-1","v":16},"Снос аварийных объектов капитального строительства",5000,"5 000 тыс. руб.",1.2133567332198167E-3,0,0]
["Снос аварийных объектов капитального строительства",{"$f":"VLOOKUP(B$1,'ПСР(2)'!$A:$R,MATCH(A17,'ПСР(2)'!$A$1:$R$1,0),0)","v":5000},"5 000 тыс. руб.",1.213356733219817E-3,"0,12%",null,{"$f":"RANK(B17,$B$2:$B$17,0)+COUNTIF($B$2:B17,B17)-1","v":15},"Обеспечение комплексного пространственного и территориального развития Нижнеилимского муниципального округа Иркутской области",237.30185,"237 тыс. руб.",5.7586359500603793E-5,0,0]
["ИТОГО ",{"$f":"SUM(B2:B17)","v":4120799.6486999989},{"$f":"TEXT(B18,\"# ##0\") & \" тыс. руб.\"","v":"4 120 800 тыс. руб."}]

{"sheet":"Лист1","index":5,"n_rows":4,"n_cols":2,"rows_kept":4,"cut":false,"hidden":true,"merged":[]}
["год","расходы"]
[2026,4120800]
[2027,3256328]
[2028,3188113]

{"sheet":"БЮДЖЕТ","index":6,"n_rows":21,"n_cols":50,"rows_kept":21,"cut":false,"hidden":true,"merged":[[4,1,4,2],[20,10,20,11],[4,7,4,8],[19,7,19,9],[4,10,4,14]]}
[]
[]
[]
[]
[null,null,null,null,{"$f":"'Дефицит-профицит'!$B$17","v":3803562.92},"тыс. руб.",null,null,null,null,{"$f":"'Дефицит-профицит'!$B$13","v":4150642.0999999996},null,null,null,null,null,null,null,null,null,null,null,null,null,null,null,null,null,null,null,null,null,null,null,null,null,null,null,null,null,null,null,null,null,null,null,null,null,null,"тыс. руб."]
[]
[]
[]
[]
[]
[]
[]
[]
[]
[]
[]
[]
[]
[]
[]
[null,null,null,null,null,null,null,null,null,null,{"$f":"'Дефицит-профицит'!B21","v":-347079.1799999997},{"$f":"'Дефицит-профицит'!#REF!","v":{"$error":"#REF!"}},"тыс. руб."]

{"sheet":"ДОХОДЫ","index":7,"n_rows":6,"n_cols":10,"rows_kept":6,"cut":false,"hidden":true,"merged":[[6,5,6,8]]}
[]
[]
[]
[]
[]
[null,"НАЛОГОВЫХ ДОХОДОВ (тыс.руб.)",null,null,"НЕНАЛОГОВЫХ ДОХОДОВ (тыс.руб.)",null,null,null,null,"БЕЗВОЗМЕЗДНЫХ ПОСТУПЛЕНИЙ (тыс.руб.)"]

{"sheet":"РАСХОДЫ  (2)","index":8,"n_rows":0,"n_cols":0,"rows_kept":0,"cut":false,"hidden":true,"merged":[[8,5,8,8]]}

{"sheet":"РАСХОДЫ ","index":9,"n_rows":0,"n_cols":0,"rows_kept":0,"cut":false,"hidden":true,"merged":[[8,5,8,8]]}

{"sheet":"ПРОГРАММЫ","index":10,"n_rows":11,"n_cols":9,"rows_kept":11,"cut":false,"hidden":true,"merged":[[8,6,8,7],[9,6,9,7],[10,6,10,7],[8,2,8,3],[9,2,9,3],[10,2,10,3],[3,2,3,3],[5,2,5,3],[5,6,5,7],[7,6,7,7],[6,2,6,3],[7,2,7,3],[6,6,6,7],[3,6,3,7]]}
[]
[]
[null,"СРЕДСТВА НА РЕАЛИЗАЦИЮ МУНИЦИПАЛЬНЫХ ПРОГРАММ",null,null,null,null,null,{"$f":"РП!$B$16","v":1408294.2000000002},"тыс.руб."]
[null,null,{"$f":"РП!$A$2","v":"Энергосбережение и повышение энергетической эффективности на территории Усть-Илимского муниципального округа"},null,{"$f":"РП!$B$2","v":800},null,{"$f":"РП!$A$3","v":"Здоровое поколение"},null,{"$f":"РП!$B$3","v":16519.099999999999}]
[]
[null,null,{"$f":"РП!$A$8","v":"«Безопасность» Усть-Илимского муниципального округа"},null,{"$f":"РП!$B$8","v":40362.300000000003},null,{"$f":"РП!$A$13","v":"Архитектура и градостроительство в Усть-Илимском муниципальном округе"},null,{"$f":"РП!$B$13","v":50436}]
[null,null,{"$f":"РП!$A$4","v":"Развитие культуры"},null,{"$f":"РП!$B$4","v":97693.5},null,{"$f":"РП!$A$7","v":"Образование в Усть-Илимском муниципальном округе"},null,{"$f":"РП!$B$7","v":792885.8}]
[null,null,{"$f":"РП!$A$9","v":"Дороги Усть-Илимского муниципального округа"},null,{"$f":"РП!$B$9","v":66729.399999999994},null,{"$f":"РП!$A$14","v":"Формирование комфортной городской среды на территории Усть-Илимского муниципального округа"},null,{"$f":"РП!$B$14","v":8842.1}]
[null,null,{"$f":"РП!$A$10","v":"Совершенствование муниципального управления Администрации Усть-Илимского муниципального округа"},null,{"$f":"РП!$B$10","v":137243.79999999999},null,{"$f":"РП!$A$12","v":"Охрана окружающей среды на территории Усть-Илимского муниципального округа"},null,{"$f":"РП!$B$12","v":63501.599999999999}]
[null,null,{"$f":"РП!$A$11","v":"Модернизация объектов коммунальной инфраструктуры Усть-Илимского муниципального округа"},null,{"$f":"РП!$B$11","v":56155},null,{"$f":"РП!$A$15","v":"Повышение эффективности деятельности муниципальных унитарных предприятий Усть-Илимского муниципального округа"},null,{"$f":"РП!$B$15","v":10000}]
[null,null,{"$f":"РП!$A$6","v":"Муниципальные финансы Усть-Илимского муниципального округа"},null,{"$f":"РП!$B$6","v":39167.599999999999},null,{"$f":"РП!$A$5","v":"Муниципальная собственность Усть-Илимского муниципального округа"},null,{"$f":"РП!$B$5","v":27958}]

{"sheet":"РП","index":11,"n_rows":16,"n_cols":2,"rows_kept":16,"cut":false,"hidden":true,"merged":[]}
[1,{"$f":"INDEX('муниципальные программы'!A2:A4, A1)","v":"2025 г. ПЛАН"}]
["Энергосбережение и повышение энергетической эффективности на территории Усть-Илимского муниципального округа",{"$f":"VLOOKUP(B$1,'муниципальные программы'!$A:$O,MATCH(A2,'муниципальные программы'!$A$1:$O$1,0),0)","v":800}]
["Здоровое поколение",{"$f":"VLOOKUP(B$1,'муниципальные программы'!$A:$O,MATCH(A3,'муниципальные программы'!$A$1:$O$1,0),0)","v":16519.099999999999}]
["Развитие культуры",{"$f":"VLOOKUP(B$1,'муниципальные программы'!$A:$O,MATCH(A4,'муниципальные программы'!$A$1:$O$1,0),0)","v":97693.5}]
["Муниципальная собственность Усть-Илимского муниципального округа",{"$f":"VLOOKUP(B$1,'муниципальные программы'!$A:$O,MATCH(A5,'муниципальные программы'!$A$1:$O$1,0),0)","v":27958}]
["Муниципальные финансы Усть-Илимского муниципального округа",{"$f":"VLOOKUP(B$1,'муниципальные программы'!$A:$O,MATCH(A6,'муниципальные программы'!$A$1:$O$1,0),0)","v":39167.599999999999}]
["Образование в Усть-Илимском муниципальном округе",{"$f":"VLOOKUP(B$1,'муниципальные программы'!$A:$O,MATCH(A7,'муниципальные программы'!$A$1:$O$1,0),0)","v":792885.8}]
["«Безопасность» Усть-Илимского муниципального округа",{"$f":"VLOOKUP(B$1,'муниципальные программы'!$A:$O,MATCH(A8,'муниципальные программы'!$A$1:$O$1,0),0)","v":40362.300000000003}]
["Дороги Усть-Илимского муниципального округа",{"$f":"VLOOKUP(B$1,'муниципальные программы'!$A:$O,MATCH(A9,'муниципальные программы'!$A$1:$O$1,0),0)","v":66729.399999999994}]
["Совершенствование муниципального управления Администрации Усть-Илимского муниципального округа",{"$f":"VLOOKUP(B$1,'муниципальные программы'!$A:$O,MATCH(A10,'муниципальные программы'!$A$1:$O$1,0),0)","v":137243.79999999999}]
["Модернизация объектов коммунальной инфраструктуры Усть-Илимского муниципального округа",{"$f":"VLOOKUP(B$1,'муниципальные программы'!$A:$O,MATCH(A11,'муниципальные программы'!$A$1:$O$1,0),0)","v":56155}]
["Охрана окружающей среды на территории Усть-Илимского муниципального округа",{"$f":"VLOOKUP(B$1,'муниципальные программы'!$A:$O,MATCH(A12,'муниципальные программы'!$A$1:$O$1,0),0)","v":63501.599999999999}]
["Архитектура и градостроительство в Усть-Илимском муниципальном округе",{"$f":"VLOOKUP(B$1,'муниципальные программы'!$A:$O,MATCH(A13,'муниципальные программы'!$A$1:$O$1,0),0)","v":50436}]
["Формирование комфортной городской среды на территории Усть-Илимского муниципального округа",{"$f":"VLOOKUP(B$1,'муниципальные программы'!$A:$O,MATCH(A14,'муниципальные программы'!$A$1:$O$1,0),0)","v":8842.1}]
["Повышение эффективности деятельности муниципальных унитарных предприятий Усть-Илимского муниципального округа",{"$f":"VLOOKUP(B$1,'муниципальные программы'!$A:$O,MATCH(A15,'муниципальные программы'!$A$1:$O$1,0),0)","v":10000}]
["ИТОГО",{"$f":"SUM(B2:B15)","v":1408294.2000000002}]

{"sheet":"муниципальные программы","index":12,"n_rows":4,"n_cols":16,"rows_kept":4,"cut":false,"hidden":true,"merged":[]}
["Столбец1","Энергосбережение и повышение энергетической эффективности на территории Усть-Илимского муниципального округа","Здоровое поколение","Развитие культуры","Муниципальная собственность Усть-Илимского муниципального округа","Муниципальные финансы Усть-Илимского муниципального округа","Образование в Усть-Илимском муниципальном округе","«Безопасность» Усть-Илимского муниципального округа","Дороги Усть-Илимского муниципального округа","Совершенствование муниципального управления Администрации Усть-Илимского муниципального округа","Модернизация объектов коммунальной инфраструктуры Усть-Илимского муниципального округа","Охрана окружающей среды на территории Усть-Илимского муниципального округа","Архитектура и градостроительство в Усть-Илимском муниципальном округе","Формирование комфортной городской среды на территории Усть-Илимского муниципального округа","Повышение эффективности деятельности муниципальных унитарных предприятий Усть-Илимского муниципального округа","ИТОГО"]
["2025 г. ПЛАН",800,16519.099999999999,97693.5,27958,39167.599999999999,792885.8,40362.300000000003,66729.399999999994,137243.79999999999,56155,63501.599999999999,50436,8842.1,10000,{"$f":"SUM(B2:O2)","v":1408294.2000000002}]
["2026 г. ПЛАН",300,12170.1,76998.5,22608.400000000001,41234.9,737947.7,26468.799999999999,66287.7,115190.3,23000,18634.900000000001,4100,2000,0,{"$f":"SUM(B3:O3)","v":1146941.2999999998}]
["2027 г. ПЛАН",300,12170.1,76985.899999999994,22108.400000000001,46108.1,815060.4,24668.799999999999,73858.8,114310,10600,17207.900000000001,2100,600,0,{"$f":"SUM(B4:O4)","v":1216078.3999999999}]

{"sheet":"Програм.расходы","index":13,"n_rows":17,"n_cols":2,"rows_kept":17,"cut":false,"hidden":true,"merged":[]}
[2,{"$f":"INDEX('муниципальные программы'!A2:A4, A1)","v":"2026 г. ПЛАН"}]
["Энергосбережение и повышение энергетической эффективности на территории Усть-Илимского муниципального округа",{"$f":"VLOOKUP(B$1,ПСР!$A:$P,MATCH(A2,ПСР!$A$1:$P$1,0),0)","v":300}]
["Здоровое поколение",{"$f":"VLOOKUP(B$1,ПСР!$A:$P,MATCH(A3,ПСР!$A$1:$P$1,0),0)","v":12170.1}]
["Развитие культуры",{"$f":"VLOOKUP(B$1,ПСР!$A:$P,MATCH(A4,ПСР!$A$1:$P$1,0),0)","v":76998.5}]
["Муниципальная собственность Усть-Илимского муниципального округа",{"$f":"VLOOKUP(B$1,ПСР!$A:$P,MATCH(A5,ПСР!$A$1:$P$1,0),0)","v":22608.400000000001}]
["Муниципальные финансы Усть-Илимского муниципального округа",{"$f":"VLOOKUP(B$1,ПСР!$A:$P,MATCH(A6,ПСР!$A$1:$P$1,0),0)","v":41234.9}]
["Образование в Усть-Илимском муниципальном округе",{"$f":"VLOOKUP(B$1,ПСР!$A:$P,MATCH(A7,ПСР!$A$1:$P$1,0),0)","v":737947.7}]
["«Безопасность» Усть-Илимского муниципального округа",{"$f":"VLOOKUP(B$1,ПСР!$A:$P,MATCH(A8,ПСР!$A$1:$P$1,0),0)","v":26468.799999999999}]
["Дороги Усть-Илимского муниципального округа",{"$f":"VLOOKUP(B$1,ПСР!$A:$P,MATCH(A9,ПСР!$A$1:$P$1,0),0)","v":66287.7}]
["Совершенствование муниципального управления Администрации Усть-Илимского муниципального округа",{"$f":"VLOOKUP(B$1,ПСР!$A:$P,MATCH(A10,ПСР!$A$1:$P$1,0),0)","v":115190.3}]
["Модернизация объектов коммунальной инфраструктуры Усть-Илимского муниципального округа",{"$f":"VLOOKUP(B$1,ПСР!$A:$P,MATCH(A11,ПСР!$A$1:$P$1,0),0)","v":23000}]
["Охрана окружающей среды на территории Усть-Илимского муниципального округа",{"$f":"VLOOKUP(B$1,ПСР!$A:$P,MATCH(A12,ПСР!$A$1:$P$1,0),0)","v":18634.900000000001}]
["Архитектура и градостроительство в Усть-Илимском муниципальном округе",{"$f":"VLOOKUP(B$1,ПСР!$A:$P,MATCH(A13,ПСР!$A$1:$P$1,0),0)","v":4100}]
["Формирование комфортной городской среды на территории Усть-Илимского муниципального округа",{"$f":"VLOOKUP(B$1,ПСР!$A:$P,MATCH(A14,ПСР!$A$1:$P$1,0),0)","v":2000}]
["Повышение эффективности деятельности муниципальных унитарных предприятий Усть-Илимского муниципального округа",{"$f":"VLOOKUP(B$1,ПСР!$A:$P,MATCH(A15,ПСР!$A$1:$P$1,0),0)","v":0}]
["Непрограммные расходы",{"$f":"VLOOKUP(B$1,ПСР!$A:$P,MATCH(A16,ПСР!$A$1:$P$1,0),0)","v":58599.5}]
["ИТОГО "]

{"sheet":"ПСР","index":14,"n_rows":4,"n_cols":17,"rows_kept":4,"cut":false,"hidden":true,"merged":[]}
["Столбец1","Энергосбережение и повышение энергетической эффективности на территории Усть-Илимского муниципального округа","Здоровое поколение","Развитие культуры","Муниципальная собственность Усть-Илимского муниципального округа","Муниципальные финансы Усть-Илимского муниципального округа","Образование в Усть-Илимском муниципальном округе","«Безопасность» Усть-Илимского муниципального округа","Дороги Усть-Илимского муниципального округа","Совершенствование муниципального управления Администрации Усть-Илимского муниципального округа","Модернизация объектов коммунальной инфраструктуры Усть-Илимского муниципального округа","Охрана окружающей среды на территории Усть-Илимского муниципального округа","Архитектура и градостроительство в Усть-Илимском муниципальном округе","Формирование комфортной городской среды на территории Усть-Илимского муниципального округа","Повышение эффективности деятельности муниципальных унитарных предприятий Усть-Илимского муниципального округа","Непрограммные расходы","ИТОГО "]
["2025 г. ПЛАН",800,16519.099999999999,97693.5,27958,39167.599999999999,792885.8,40362.300000000003,66729.399999999994,137243.79999999999,56155,63501.599999999999,50436,8842.1,10000,58953.7,{"$f":"SUM(B2:P2)","v":1467247.9000000001}]
["2026 г. ПЛАН",300,12170.1,76998.5,22608.400000000001,41234.9,737947.7,26468.799999999999,66287.7,115190.3,23000,18634.900000000001,4100,2000,0,58599.5,{"$f":"SUM(B3:P3)","v":1205540.7999999998}]
["2027 г. ПЛАН",300,12170.1,76985.899999999994,22108.400000000001,46108.1,815060.4,24668.799999999999,73858.8,114310,10600,17207.900000000001,2100,600,0,57921.599999999999,{"$f":"SUM(B4:P4)","v":1274000}]

{"sheet":"муниципальные программы(2)","index":15,"n_rows":4,"n_cols":18,"rows_kept":4,"cut":false,"hidden":true,"merged":[]}
[null,"Организация муниципального управления","Управление муниципальной собственностью","Безопасность","Дорожное хозяйство","Физическая культура и спорт","Развитие образования","Поддержка сферы культуры","Молодежная политика","Реализация полномочий в области социальной политики","Переселение граждан из аварийного жилфонда","Благоустройство территорий","Осуществление бюджетных инвестиций в объекты муниципальной собственности и учреждения бюджетной сферы и муниципальные жилые помещения","Создание условий для предоставления транспортных услуг населению и организация транспортного обслуживания населения","Развитие коммунального хозяйства","Обеспечение комплексного пространственного и территориального развития Нижнеилимского муниципального округа Иркутской области","Снос аварийных объектов капитального строительства на территории Нижнеилимского муниципального округа","ИТОГО"]
["2026 г. ПЛАН",673326.19892,43864.907950000001,80282.034759999995,311946.21338999999,139242.79999999999,2073727.60247,357626.85677000001,8885.42,40162.9,129593.25900000001,150592.87124000001,61056.460780000001,21968.534350000002,23286.238000000001,237.30185,5000,{"$f":"SUM(B2:Q2)","v":4120799.5994799989}]
["2027 г. ПЛАН",512278.14883000002,1100,46000,254915.20000000001,64882.3,1920696.5,234493.21,1938.4,35860.300000000003,136913.85117000001,47250,0,0,0,0,0,{"$f":"SUM(B3:Q3)","v":3256327.91}]
["2028 г. ПЛАН",513937.8,1100,46000,259388.3,64882.3,1983258,234498.3,1938.4,35860.300000000003,0,47250,0,0,0,0,0,{"$f":"SUM(B4:Q4)","v":3188113.4}]

{"sheet":"Програм.расходы (2)","index":16,"n_rows":19,"n_cols":11,"rows_kept":19,"cut":false,"hidden":true,"merged":[]}
[{"$f":"'Дефицит-профицит'!A1","v":1},{"$f":"INDEX('муниципальные программы(2)'!A2:A4, A1)","v":"2026 г. ПЛАН"}]
["Организация муниципального управления",{"$f":"VLOOKUP(B$1,'ПСР(2)'!$A:$R,MATCH(A2,'ПСР(2)'!$A$1:$R$1,0),0)","v":673326.19892},{"$f":"IF(B2=0,\"\",RANK(B2,$B$2:$B$17,0))","v":2},{"$f":"IFERROR(INDEX($A$2:$A$17,MATCH(ROW(A1),$C$2:$C$17,0)),NA())","v":"Развитие образования"},{"$f":"IFERROR(INDEX($B$2:$B$17,MATCH(ROW(A1),$C$2:$C$17,0)),NA())","v":2073727.60247},{"$f":"E2","v":2073727.60247},{"$f":"TEXT(F2,\"# ##0\") & \" тыс. руб.\"","v":"2 073 728 тыс. руб."},{"$f":"D2","v":"Развитие образования"},{"$f":"E2/SUM(IF(ISNUMBER($E$2:$E$17),$E$2:$E$17))","v":0.50323426986415243},{"$f":"ROUND(I2*100,0)","v":50},{"$f":"J2","v":50}]
["Управление муниципальной собственностью",{"$f":"VLOOKUP(B$1,'ПСР(2)'!$A:$R,MATCH(A3,'ПСР(2)'!$A$1:$R$1,0),0)","v":43864.907950000001},{"$f":"IF(B3=0,\"\",RANK(B3,$B$2:$B$17,0))","v":10},{"$f":"IFERROR(INDEX($A$2:$A$17,MATCH(ROW(A2),$C$2:$C$17,0)),NA())","v":"Организация муниципального управления"},{"$f":"IFERROR(INDEX($B$2:$B$17,MATCH(ROW(A2),$C$2:$C$17,0)),NA())","v":673326.19892},{"$f":"E3","v":673326.19892},{"$f":"TEXT(F3,\"# ##0\") & \" тыс. руб.\"","v":"673 326 тыс. руб."},{"$f":"D3","v":"Организация муниципального управления"},{"$f":"E3/SUM(IF(ISNUMBER($E$2:$E$17),$E$2:$E$17))","v":0.16339697542257753},{"$f":"ROUND(I3*100,0)","v":16},{"$f":"J3","v":16}]
["Безопасность",{"$f":"VLOOKUP(B$1,'ПСР(2)'!$A:$R,MATCH(A4,'ПСР(2)'!$A$1:$R$1,0),0)","v":80282.034759999995},8,"Поддержка сферы культуры",357626.85677000001,357626.85677000001,"357 627 тыс. руб.","Поддержка сферы культуры",{"$f":"E4/SUM(IF(ISNUMBER($E$2:$E$17),$E$2:$E$17))","v":8.6785790928423701E-2},9,9]
["Дорожное хозяйство",{"$f":"VLOOKUP(B$1,'ПСР(2)'!$A:$R,MATCH(A5,'ПСР(2)'!$A$1:$R$1,0),0)","v":311946.21338999999},4,"Дорожное хозяйство",311946.21338999999,311946.21338999999,"311 946 тыс. руб.","Дорожное хозяйство",{"$f":"E5/SUM(IF(ISNUMBER($E$2:$E$17),$E$2:$E$17))","v":7.5700407683836443E-2},{"$f":"ROUND(I5*100,0)","v":8},8]
["Физическая культура и спорт",{"$f":"VLOOKUP(B$1,'ПСР(2)'!$A:$R,MATCH(A6,'ПСР(2)'!$A$1:$R$1,0),0)","v":139242.79999999999},6,"Благоустройство территорий",150592.87124000001,150592.87124000001,"150 593 тыс. руб.","Благоустройство территорий",{"$f":"E6/SUM(IF(ISNUMBER($E$2:$E$17),$E$2:$E$17))","v":3.6544574858791777E-2},4,4]
["Развитие образования",{"$f":"VLOOKUP(B$1,'ПСР(2)'!$A:$R,MATCH(A7,'ПСР(2)'!$A$1:$R$1,0),0)","v":2073727.60247},1,"Физическая культура и спорт",139242.79999999999,139242.79999999999,"139 243 тыс. руб.","Физическая культура и спорт",{"$f":"E7/SUM(IF(ISNUMBER($E$2:$E$17),$E$2:$E$17))","v":3.3790237786476059E-2},{"$f":"IF(AND(I7<=0.01483,I7>0.01),2,ROUND(I7*100,0))","v":3},3]
["Поддержка сферы культуры",{"$f":"VLOOKUP(B$1,'ПСР(2)'!$A:$R,MATCH(A8,'ПСР(2)'!$A$1:$R$1,0),0)","v":357626.85677000001},3,"Переселение граждан из аварийного жилфонда",129593.25900000001,129593.25900000001,"129 593 тыс. руб.","Переселение граждан из аварийного жилфонда",{"$f":"E8/SUM(IF(ISNUMBER($E$2:$E$17),$E$2:$E$17))","v":3.1448570677509925E-2},{"$f":"IF(AND(I8>0.01442,I8<0.01444),2,IF(AND(I8>0.0145,I8<0.01452),1,ROUND(I8*100,0)))","v":3},3]
["Молодежная политика",{"$f":"VLOOKUP(B$1,'ПСР(2)'!$A:$R,MATCH(A9,'ПСР(2)'!$A$1:$R$1,0),0)","v":8885.42},14,"Безопасность",80282.034759999995,{"$f":"SUM(IF(ISNUMBER(E9:E18),E9:E18))","v":284743.84690999996},{"$f":"F9","v":284743.84690999996},"Иные программы",{"$f":"F9/SUM(IF(ISNUMBER($E$2:$E$17),$E$2:$E$17))","v":6.9099172778232229E-2},7,7]
["Реализация полномочий в области социальной политики",{"$f":"VLOOKUP(B$1,'ПСР(2)'!$A:$R,MATCH(A10,'ПСР(2)'!$A$1:$R$1,0),0)","v":40162.9},11,"Осуществление бюджетных инвестиций в объекты муниципальной собственности и учреждения бюджетной сферы и муниципальные жилые помещения",61056.51]
["Переселение граждан из аварийного жилфонда",{"$f":"VLOOKUP(B$1,'ПСР(2)'!$A:$R,MATCH(A11,'ПСР(2)'!$A$1:$R$1,0),0)","v":129593.25900000001},7,"Управление муниципальной собственностью",43864.907950000001]
["Благоустройство территорий",{"$f":"VLOOKUP(B$1,'ПСР(2)'!$A:$R,MATCH(A12,'ПСР(2)'!$A$1:$R$1,0),0)","v":150592.87124000001},5,"Реализация полномочий в области социальной политики",40162.9]
["Осуществление бюджетных инвестиций в объекты муниципальной собственности и учреждения бюджетной сферы и муниципальные жилые помещения",{"$f":"VLOOKUP(B$1,'ПСР(2)'!$A:$R,MATCH(A13,'ПСР(2)'!$A$1:$R$1,0),0)","v":61056.51},9,"Развитие коммунального хозяйства",23286.238000000001]
["Создание условий для предоставления транспортных услуг населению и организация транспортного обслуживания населения",{"$f":"VLOOKUP(B$1,'ПСР(2)'!$A:$R,MATCH(A14,'ПСР(2)'!$A$1:$R$1,0),0)","v":21968.534350000002},13,"Создание условий для предоставления транспортных услуг населению и организация транспортного обслуживания населения",21968.534350000002]
["Развитие коммунального хозяйства",{"$f":"VLOOKUP(B$1,'ПСР(2)'!$A:$R,MATCH(A15,'ПСР(2)'!$A$1:$R$1,0),0)","v":23286.238000000001},12,"Молодежная политика",8885.42]
["Обеспечение комплексного пространственного и территориального развития Нижнеилимского муниципального округа Иркутской области",{"$f":"VLOOKUP(B$1,'ПСР(2)'!$A:$R,MATCH(A16,'ПСР(2)'!$A$1:$R$1,0),0)","v":237.30185},16,"Снос аварийных объектов капитального строительства",5000]
["Снос аварийных объектов капитального строительства",{"$f":"VLOOKUP(B$1,'ПСР(2)'!$A:$R,MATCH(A17,'ПСР(2)'!$A$1:$R$1,0),0)","v":5000},15,"Обеспечение комплексного пространственного и территориального развития Нижнеилимского муниципального округа Иркутской области",237.30185]
["Непрограммные расходы",{"$f":"VLOOKUP(B$1,'ПСР(2)'!$A:$R,MATCH(A18,'ПСР(2)'!$A$1:$R$1,0),0)","v":29842.050999999999}]
["ИТОГО "]

{"sheet":"ПСР(2)","index":17,"n_rows":10,"n_cols":21,"rows_kept":10,"cut":false,"hidden":true,"merged":[]}
[null,"Организация муниципального управления","Управление муниципальной собственностью","Безопасность","Дорожное хозяйство","Физическая культура и спорт","Развитие образования","Поддержка сферы культуры","Молодежная политика","Реализация полномочий в области социальной политики","Переселение граждан из аварийного жилфонда","Благоустройство территорий","Осуществление бюджетных инвестиций в объекты муниципальной собственности и учреждения бюджетной сферы и муниципальные жилые помещения","Создание условий для предоставления транспортных услуг населению и организация транспортного обслуживания населения","Развитие коммунального хозяйства","Обеспечение комплексного пространственного и территориального развития Нижнеилимского муниципального округа Иркутской области","Снос аварийных объектов капитального строительства","Непрограммные расходы","ИТОГО"]
["2026 г. ПЛАН",673326.19892,43864.907950000001,80282.034759999995,311946.21338999999,139242.79999999999,2073727.60247,357626.85677000001,8885.42,40162.9,129593.25900000001,150592.87124000001,61056.51,21968.534350000002,23286.238000000001,237.30185,5000,29842.050999999999,{"$f":"SUM(B2:R2)","v":4150641.6996999988}]
["2027 г. ПЛАН",512278.14883000002,1100,46000,254915.20000000001,64882.3,1920696.5,234493.21,1938.5,35860.300000000003,136913.85117000001,47250,0,0,0,0,0,17948,{"$f":"SUM(B3:R3)","v":3274276.0100000002},{"$f":"(S3-S2)/S2","v":-0.21113980755393577},{"$f":"TEXT(ROUND(T3*100,0),\"# ##0\") & \"%\"","v":"-21%"}]
["2028 г. ПЛАН",513937.8,1100,46000,259388.3,64882.3,1983258,234498.3,1938.5,35860.199999999997,0,47250,0,0,0,0,0,17948,{"$f":"SUM(B4:R4)","v":3206061.4000000004},{"$f":"(S4-S3)/S3","v":-2.0833494119513726E-2},{"$f":"TEXT(ROUND(T4*100,0),\"# ##0\") & \"%\"","v":"-2%"}]
[]
[null,null,null,null,null,null,null,null,null,null,null,"было","стало"]
[null,null,null,null,null,null,null,null,null,null,"в строке 2026 изменил:",61056.460780000001,61056.51]
[null,null,null,null,null,null,null,null,null,null,"в строке 2027 изменил:",1938.4,1938.5]
[null,null,null,null,null,null,null,null,null,null,"в строке 2028 изменил:",1938.4,1938.5]
[null,null,null,null,null,null,null,null,null,null,null,35860.300000000003,35860.199999999997]

{"sheet":"Дефицит-профицит","index":18,"n_rows":22,"n_cols":12,"rows_kept":22,"cut":false,"hidden":true,"merged":[]}
[1,{"$f":"INDEX('Доходы-расходы'!A2:A4, A1)","v":"2026 г. ПЛАН"}]
["Социальная политика",{"$f":"VLOOKUP(B$1,'Доходы-расходы'!$A:$R,MATCH(A2,'Доходы-расходы'!$A$1:$R$1,0),0)","v":41622.800000000003},{"$f":"VLOOKUP(B$1,'%для бюджет'!$A:$R,MATCH(A2,'%для бюджет'!$A$1:$R$1,0),0)","v":0},{"$f":"RANK(B2,$B$2:$B$12,0)","v":8},null,{"$f":"INDEX($A$2:$A$12,MATCH(ROW(A1),$D$2:$D$12,0))","v":"Образование"},{"$f":"INDEX($B$2:$B$12,MATCH(ROW(A1),$D$2:$D$12,0))","v":2183826.7999999998},{"$f":"INDEX(C2:C12,MATCH(ROW(A1),$D$2:$D$12,0))","v":52},{"$f":"TEXT(G2,\"# ##0\") & \" тыс. руб.\"","v":"2 183 827 тыс. руб."},null,null,{"$f":"TEXT(H2,\"# ##0\") & \"%\"","v":"52%"}]
["Образование",{"$f":"VLOOKUP(B$1,'Доходы-расходы'!$A:$R,MATCH(A3,'Доходы-расходы'!$A$1:$R$1,0),0)","v":2183826.7999999998},{"$f":"VLOOKUP(B$1,'%для бюджет'!$A:$R,MATCH(A3,'%для бюджет'!$A$1:$R$1,0),0)","v":52},{"$f":"RANK(B3,$B$2:$B$12,0)","v":1},null,{"$f":"INDEX($A$2:$A$12,MATCH(ROW(A2),$D$2:$D$12,0))","v":"Общегосударственные вопросы"},{"$f":"INDEX($B$2:$B$12,MATCH(ROW(A2),$D$2:$D$12,0))","v":705518.7},{"$f":"INDEX(C2:C12,MATCH(ROW(A2),$D$2:$D$12,0))","v":17},{"$f":"TEXT(G3,\"# ##0\") & \" тыс. руб.\"","v":"705 519 тыс. руб."},null,null,{"$f":"TEXT(H3,\"# ##0\") & \"%\"","v":"17%"}]
["Культура и Кинематография",{"$f":"VLOOKUP(B$1,'Доходы-расходы'!$A:$R,MATCH(A4,'Доходы-расходы'!$A$1:$R$1,0),0)","v":288399.2},{"$f":"VLOOKUP(B$1,'%для бюджет'!$A:$R,MATCH(A4,'%для бюджет'!$A$1:$R$1,0),0)","v":7},4,null,"Национальная экономика",{"$f":"INDEX($B$2:$B$12,MATCH(ROW(A3),$D$2:$D$12,0))","v":415968.4},{"$f":"INDEX(C2:C12,MATCH(ROW(A3),$D$2:$D$12,0))","v":10},"415 968 тыс. руб.",null,null,"10%"]
["Национальная экономика",{"$f":"VLOOKUP(B$1,'Доходы-расходы'!$A:$R,MATCH(A5,'Доходы-расходы'!$A$1:$R$1,0),0)","v":415968.4},{"$f":"VLOOKUP(B$1,'%для бюджет'!$A:$R,MATCH(A5,'%для бюджет'!$A$1:$R$1,0),0)","v":10},3,null,"Культура и Кинематография",288399.2,{"$f":"INDEX(C2:C12,MATCH(ROW(A4),$D$2:$D$12,0))","v":7},"288 399 тыс. руб.",null,null,"7%"]
["Общегосударственные вопросы",{"$f":"VLOOKUP(B$1,'Доходы-расходы'!$A:$R,MATCH(A6,'Доходы-расходы'!$A$1:$R$1,0),0)","v":705518.7},{"$f":"VLOOKUP(B$1,'%для бюджет'!$A:$R,MATCH(A6,'%для бюджет'!$A$1:$R$1,0),0)","v":17},2,null,"Жилищно-коммунальное хозяйство",234774.2,{"$f":"INDEX(C2:C12,MATCH(ROW(A5),$D$2:$D$12,0))","v":6},"234 774 тыс. руб.",null,null,"6%"]
["Физическая культура и спорт",{"$f":"VLOOKUP(B$1,'Доходы-расходы'!$A:$R,MATCH(A7,'Доходы-расходы'!$A$1:$R$1,0),0)","v":193416.1},{"$f":"VLOOKUP(B$1,'%для бюджет'!$A:$R,MATCH(A7,'%для бюджет'!$A$1:$R$1,0),0)","v":5},6,null,"Физическая культура и спорт",193416.1,{"$f":"INDEX(C2:C12,MATCH(ROW(A6),$D$2:$D$12,0))","v":5},"193 416 тыс. руб.",null,null,"5%"]
["Национальная безопасность",{"$f":"VLOOKUP(B$1,'Доходы-расходы'!$A:$R,MATCH(A8,'Доходы-расходы'!$A$1:$R$1,0),0)","v":76697},{"$f":"VLOOKUP(B$1,'%для бюджет'!$A:$R,MATCH(A8,'%для бюджет'!$A$1:$R$1,0),0)","v":2},7,null,"Национальная безопасность",76697,{"$f":"INDEX(C2:C12,MATCH(ROW(A7),$D$2:$D$12,0))","v":2},"76 697 тыс. руб.",null,null,"2%"]
["Национальная  оборона",{"$f":"VLOOKUP(B$1,'Доходы-расходы'!$A:$R,MATCH(A9,'Доходы-расходы'!$A$1:$R$1,0),0)","v":5306.5},{"$f":"VLOOKUP(B$1,'%для бюджет'!$A:$R,MATCH(A9,'%для бюджет'!$A$1:$R$1,0),0)","v":0},9,null,"Социальная политика",41622.800000000003,{"$f":"INDEX(C2:C12,MATCH(ROW(A8),$D$2:$D$12,0))","v":0},{"$f":"TEXT(G9,\"# ##0\") & \" тыс. руб.\"","v":"41 623 тыс. руб."},{"$f":"SUM(G9:G12)","v":52041.700000000004},{"$f":"TEXT(J9,\"# ##0\") & \" тыс. руб.\"","v":"52 042 тыс. руб."}]
["Обслуживание государственного внутреннего и муниципального долга",{"$f":"VLOOKUP(B$1,'Доходы-расходы'!$A:$R,MATCH(A10,'Доходы-расходы'!$A$1:$R$1,0),0)","v":300.5},{"$f":"VLOOKUP(B$1,'%для бюджет'!$A:$R,MATCH(A10,'%для бюджет'!$A$1:$R$1,0),0)","v":0},11,null,"Национальная  оборона",5306.5,{"$f":"INDEX(C2:C12,MATCH(ROW(A9),$D$2:$D$12,0))","v":0},"5 307 тыс. руб."]
["Жилищно-коммунальное хозяйство",{"$f":"VLOOKUP(B$1,'Доходы-расходы'!$A:$R,MATCH(A11,'Доходы-расходы'!$A$1:$R$1,0),0)","v":234774.2},{"$f":"VLOOKUP(B$1,'%для бюджет'!$A:$R,MATCH(A11,'%для бюджет'!$A$1:$R$1,0),0)","v":6},5,null,"Охрана окружающей среды",4811.8999999999996,{"$f":"INDEX(C2:C12,MATCH(ROW(A10),$D$2:$D$12,0))","v":0},"4 812 тыс. руб."]
["Охрана окружающей среды",{"$f":"VLOOKUP(B$1,'Доходы-расходы'!$A:$R,MATCH(A12,'Доходы-расходы'!$A$1:$R$1,0),0)","v":4811.8999999999996},{"$f":"VLOOKUP(B$1,'%для бюджет'!$A:$R,MATCH(A12,'%для бюджет'!$A$1:$R$1,0),0)","v":0},10,null,"Обслуживание государственного внутреннего и муниципального долга",300.5,{"$f":"INDEX(C2:C12,MATCH(ROW(A11),$D$2:$D$12,0))","v":0},"301 тыс. руб."]
["ИТОГО (расходы):",{"$f":"VLOOKUP(B$1,'Доходы-расходы'!$A:$R,MATCH(A13,'Доходы-расходы'!$A$1:$R$1,0),0)","v":4150642.0999999996}]
["Налоговые доходы",{"$f":"VLOOKUP(B$1,'Доходы-расходы'!$A:$R,MATCH(A14,'Доходы-расходы'!$A$1:$R$1,0),0)","v":1179283.8},{"$f":"TEXT(B14,\"# ##0\") & \" тыс. руб. \" & TEXT(B14/B17,\"0%\")","v":"1 179 284 тыс. руб. 31%"},{"$f":"TEXT(B14,\"# ##0\") & \" тыс. руб.\"","v":"1 179 284 тыс. руб."}]
["Неналоговые доходы",{"$f":"VLOOKUP(B$1,'Доходы-расходы'!$A:$R,MATCH(A15,'Доходы-расходы'!$A$1:$R$1,0),0)","v":79480},{"$f":"TEXT(B15,\"# ##0\") & \" тыс. руб. \" & TEXT(INT(B15/B17*100)/100,\"0%\")","v":"79 480 тыс. руб. 2%"},{"$f":"TEXT(B15,\"# ##0\") & \" тыс. руб.\"","v":"79 480 тыс. руб."}]
["Безвозмездные поступления",{"$f":"VLOOKUP(B$1,'Доходы-расходы'!$A:$R,MATCH(A16,'Доходы-расходы'!$A$1:$R$1,0),0)","v":2544799.12},{"$f":"TEXT(B16,\"# ##0\") & \" тыс. руб. \" & TEXT(B16/B17,\"0%\")","v":"2 544 799 тыс. руб. 67%"},{"$f":"TEXT(B16,\"# ##0\") & \" тыс. руб.\"","v":"2 544 799 тыс. руб."}]
["ИТОГО (доходы):",{"$f":"VLOOKUP(B$1,'Доходы-расходы'!$A:$S,MATCH(A17,'Доходы-расходы'!$A$1:$R$1,0),0)","v":3803562.92}]
[]
[]
[]
["Дефицит бюджета:",{"$f":"B17-B13","v":-347079.1799999997},{"$f":"TEXT(B21,\"# ##0\")","v":"-347 079"},{"$f":"IF(B21>=0,C21,\"\")","v":""},{"$f":"IF(B21<0,C21,\"\")","v":"-347 079"}]
["Профицит бюджета:"]

{"sheet":"%для бюджет","index":19,"n_rows":4,"n_cols":20,"rows_kept":4,"cut":false,"hidden":true,"merged":[]}
["Столбец1","Социальная политика","Образование","Культура и Кинематография","Национальная экономика","Общегосударственные вопросы","Физическая культура и спорт","Национальная безопасность","Национальная  оборона","Обслуживание государственного внутреннего и муниципального долга","Жилищно-коммунальное хозяйство","Охрана окружающей среды","Условно утвержденные ","ИТОГО (расходы):","Налоговые доходы","Неналоговые доходы","Безвозмездные поступления","ИТОГО (доходы):","Профицит бюджета:","Дефицит бюджета:"]
["2026 г. ПЛАН",0,52,7,10,17,5,2,null,null,6,null,null,{"$f":"SUM(B2:L2)","v":99},null,null,null,null,0,{"$f":"R2-N2","v":-99}]
["2027 г. ПЛАН",0,61,6,9,15,2,1,null,null,5,null,null,{"$f":"SUM(B3:M3)","v":99},null,null,null,null,null,{"$f":"R3-N3","v":-99}]
["2028 г. ПЛАН",1,64,6,9,16,2,1,null,null,0,null,null,{"$f":"SUM(B4:M4)","v":99},null,null,null,null,0,{"$f":"R4-N4","v":-99}]

{"sheet":"Доходы-расходы","index":20,"n_rows":18,"n_cols":20,"rows_kept":18,"cut":false,"hidden":true,"merged":[]}
["Столбец1","Социальная политика","Образование","Культура и Кинематография","Национальная экономика","Общегосударственные вопросы","Физическая культура и спорт","Национальная безопасность","Национальная  оборона","Обслуживание государственного внутреннего и муниципального долга","Жилищно-коммунальное хозяйство","Охрана окружающей среды","Условно утвержденные ","ИТОГО (расходы):","Налоговые доходы","Неналоговые доходы","Безвозмездные поступления","ИТОГО (доходы):","Профицит бюджета:","Дефицит бюджета:"]
["2026 г. ПЛАН",41622.800000000003,2183826.7999999998,288399.2,415968.4,705518.7,193416.1,76697,5306.5,300.5,234774.2,4811.8999999999996,null,{"$f":"SUM(B2:L2)","v":4150642.0999999996},1179283.8,79480,2544799.12,{"$f":"SUM(O2:Q2)","v":3803562.92},0,{"$f":"R2-N2","v":-347079.1799999997}]
["2027 г. ПЛАН",37844.9,1998187.9,181880.2,277140.2,498923.5,73682.3,45000,5857.1,300,153138.9,2320.9,null,{"$f":"SUM(B3:M3)","v":3274275.9},1250987.8999999999,81362,1912681.41,{"$f":"SUM(O3:Q3)","v":3245031.3099999996},null,{"$f":"R3-N3","v":-29244.590000000317}]
["2028 г. ПЛАН",37844.9,2060750,181885,281613,498924.4,73682.3,45000,7515.9,300,16225,2320.9,null,{"$f":"SUM(B4:M4)","v":3206061.3999999994},1297233,137577,1811286,{"$f":"SUM(O4:Q4)","v":3246096},0,{"$f":"R4-N4","v":40034.600000000559}]
[]
[null,"Налоговые доходы","Неналоговые доходы","Безвозмездные поступления","ИТОГО:"]
["2026 г. ПЛАН",1179283.8,79480,2544799.12,{"$f":"SUM(B7:D7)","v":3803562.92}]
["2027 г. ПЛАН",1250987.8999999999,81362,1912681.41,{"$f":"SUM(B8:D8)","v":3245031.3099999996}]
["2028 г. ПЛАН",1297233,137577,1811286,{"$f":"SUM(B9:D9)","v":3246096}]
[]
[]
[]
[]
[null,null,null,null,null,null,null,"заменили в строке 2026:","вместо 415967,4 написали 415968,4"]
[null,null,null,null,null,null,null,null,"вместо 4812,9 написали 4811,9"]
[null,null,null,null,null,null,null,"заменили в строке 2028:",2060749.4,2060750]
[null,null,null,null,null,null,null,null,281613.3,281613]
[null,null,null,null,null,null,null,null,181885.3,181885]

{"sheet":"БП","index":21,"n_rows":7,"n_cols":2,"rows_kept":7,"cut":false,"hidden":true,"merged":[]}
[{"$f":"'Дефицит-профицит'!A1","v":1},{"$f":"INDEX(НД!A2:A4, A1)","v":"2026 г. ПЛАН"}]
["Дотации бюджетам бюджетной системы Российской Федерации",{"$f":"VLOOKUP(B$1,НД!$A:$T,MATCH(A2,НД!$A$1:$T$1,0),0)","v":564719.4}]
["Субсидии бюджетам бюджетной системы Российской Федерации (межбюджетные субсидии)",{"$f":"VLOOKUP(B$1,НД!$A:$T,MATCH(A3,НД!$A$1:$T$1,0),0)","v":404508.43}]
["Субвенции бюджетам бюджетной системы Российской Федерации",{"$f":"VLOOKUP(B$1,НД!$A:$T,MATCH(A4,НД!$A$1:$T$1,0),0)","v":1476308.8}]
["Иные межбюджетные трансферты",{"$f":"VLOOKUP(B$1,НД!$A:$T,MATCH(A5,НД!$A$1:$T$1,0),0)","v":98812.51}]
["Прочие безвозмездные поступления в бюджеты муниципальных округов",{"$f":"VLOOKUP(B$1,НД!$A:$T,MATCH(A6,НД!$A$1:$T$1,0),0)","v":450}]
["ИТОГО",{"$f":"SUM(B2:B6)","v":2544799.1399999997}]

{"sheet":"нал.доходы","index":22,"n_rows":8,"n_cols":2,"rows_kept":8,"cut":false,"hidden":true,"merged":[]}
[{"$f":"'Дефицит-профицит'!A1","v":1},{"$f":"INDEX(НД!A2:A4, A1)","v":"2026 г. ПЛАН"}]
["Налог на доходы физических лиц",{"$f":"VLOOKUP(B$1,НД!$A:$T,MATCH(A2,НД!$A$1:$T$1,0),0)","v":910000}]
["Налог на совокупный доход",{"$f":"VLOOKUP(B$1,НД!$A:$T,MATCH(A3,НД!$A$1:$T$1,0),0)","v":120394}]
["Земельный налог",{"$f":"VLOOKUP(B$1,НД!$A:$T,MATCH(A4,НД!$A$1:$T$1,0),0)","v":32215}]
["Государственная пошлина",{"$f":"VLOOKUP(B$1,НД!$A:$T,MATCH(A5,НД!$A$1:$T$1,0),0)","v":26556}]
["Налоги на имущество физических лиц",{"$f":"VLOOKUP(B$1,НД!$A:$T,MATCH(A6,НД!$A$1:$T$1,0),0)","v":14724}]
["Акцизы по подакцизным товарам",{"$f":"VLOOKUP(B$1,НД!$A:$T,MATCH(A7,НД!$A$1:$T$1,0),0)","v":75394.8}]
["ИТОГО",{"$f":"SUM(B2:B7)","v":1179283.8}]

{"sheet":"Ненал.доходы","index":23,"n_rows":8,"n_cols":2,"rows_kept":8,"cut":false,"hidden":true,"merged":[]}
[{"$f":"'Дефицит-профицит'!A1","v":1},{"$f":"INDEX(НД!A2:A4, A1)","v":"2026 г. ПЛАН"}]
["Доходы от продажи активов",{"$f":"VLOOKUP(B$1,НД!$A:$T,MATCH(A2,НД!$A$1:$T$1,0),0)","v":763}]
["Доходы от использования имущества, находящегося в муниципальной собственности",{"$f":"VLOOKUP(B$1,НД!$A:$T,MATCH(A3,НД!$A$1:$T$1,0),0)","v":18172}]
["Штрафы",{"$f":"VLOOKUP(B$1,НД!$A:$T,MATCH(A4,НД!$A$1:$T$1,0),0)","v":1900}]
["Прочие неналоговые доходы",{"$f":"VLOOKUP(B$1,НД!$A:$T,MATCH(A5,НД!$A$1:$T$1,0),0)","v":0}]
["Плата за негативное воздействие на окружающую среду",{"$f":"VLOOKUP(B$1,НД!$A:$T,MATCH(A6,НД!$A$1:$T$1,0),0)","v":0}]
["Доходы от оказания платных услуг и компенсации затрат государства",{"$f":"VLOOKUP(B$1,НД!$A:$T,MATCH(A7,НД!$A$1:$T$1,0),0)","v":58645}]
["ИТОГО",{"$f":"SUM(B2:B7)","v":79480}]

{"sheet":"ДОХОДЫ (2)","index":24,"n_rows":21,"n_cols":11,"rows_kept":21,"cut":false,"hidden":true,"merged":[]}
[{"$f":"'Дефицит-профицит'!A1","v":1},{"$f":"INDEX(НД!A2:A4, A1)","v":"2026 г. ПЛАН"}]
["Налог на доходы физических лиц",{"$f":"VLOOKUP(B$1,НД!$A:$N,MATCH(A2,НД!$A$1:$N$1,0),0)","v":910000},{"$f":"RANK(B2,$B$2:$B$7,0)","v":1},{"$f":"INDEX($A$2:$A$7,MATCH(ROW(A1),$C$2:$C$7,0))","v":"Налог на доходы физических лиц"},{"$f":"INDEX($B$2:$B$7,MATCH(ROW(A1),$C$2:$C$7,0))","v":910000},null,{"$f":"TEXT(E2,\"# ##0\") & \" тыс. руб.\"","v":"910 000 тыс. руб."},null,{"$f":"VLOOKUP(B$1,'%НД'!$A:$N,MATCH(A2,'%НД'!$A$1:$N$1,0),0)","v":77},{"$f":"INDEX(I2:I7,MATCH(ROW(A1),$C$2:$C$7,0))","v":77},{"$f":"TEXT(J2,\"# ##0\") & \"%\"","v":"77%"}]
["Налог на совокупный доход",{"$f":"VLOOKUP(B$1,НД!$A:$N,MATCH(A3,НД!$A$1:$N$1,0),0)","v":120394},{"$f":"RANK(B3,$B$2:$B$7,0)","v":2},{"$f":"INDEX($A$2:$A$7,MATCH(ROW(A2),$C$2:$C$7,0))","v":"Налог на совокупный доход"},{"$f":"INDEX($B$2:$B$7,MATCH(ROW(A2),$C$2:$C$7,0))","v":120394},null,{"$f":"TEXT(E3,\"# ##0\") & \" тыс. руб.\"","v":"120 394 тыс. руб."},null,{"$f":"VLOOKUP(B$1,'%НД'!$A:$N,MATCH(A3,'%НД'!$A$1:$N$1,0),0)","v":10},{"$f":"INDEX(I2:I7,MATCH(ROW(A2),$C$2:$C$7,0))","v":10},{"$f":"TEXT(J3,\"# ##0\") & \"%\"","v":"10%"}]
["Земельный налог",{"$f":"VLOOKUP(B$1,НД!$A:$N,MATCH(A4,НД!$A$1:$N$1,0),0)","v":32215},4,"Акцизы по подакцизным товарам",75394.8,null,"75 395 тыс. руб.",null,{"$f":"VLOOKUP(B$1,'%НД'!$A:$N,MATCH(A4,'%НД'!$A$1:$N$1,0),0)","v":3},{"$f":"INDEX(I2:I7,MATCH(ROW(A3),$C$2:$C$7,0))","v":7},"7%"]
["Государственная пошлина",{"$f":"VLOOKUP(B$1,НД!$A:$N,MATCH(A5,НД!$A$1:$N$1,0),0)","v":26556},5,"Земельный налог",32215,null,"32 215 тыс. руб.",null,{"$f":"VLOOKUP(B$1,'%НД'!$A:$N,MATCH(A5,'%НД'!$A$1:$N$1,0),0)","v":2},{"$f":"INDEX(I2:I7,MATCH(ROW(A4),$C$2:$C$7,0))","v":3},"3%"]
["Налоги на имущество физических лиц",{"$f":"VLOOKUP(B$1,НД!$A:$N,MATCH(A6,НД!$A$1:$N$1,0),0)","v":14724},6,"Государственная пошлина",26556,null,"26 556 тыс. руб.",null,{"$f":"VLOOKUP(B$1,'%НД'!$A:$N,MATCH(A6,'%НД'!$A$1:$N$1,0),0)","v":1},{"$f":"INDEX(I2:I7,MATCH(ROW(A5),$C$2:$C$7,0))","v":2},"2%"]
["Акцизы по подакцизным товарам",{"$f":"VLOOKUP(B$1,НД!$A:$N,MATCH(A7,НД!$A$1:$N$1,0),0)","v":75394.8},3,"Налоги на имущество физических лиц",14724,null,"14 724 тыс. руб.",null,{"$f":"VLOOKUP(B$1,'%НД'!$A:$N,MATCH(A7,'%НД'!$A$1:$N$1,0),0)","v":7},{"$f":"INDEX(I2:I7,MATCH(ROW(A6),$C$2:$C$7,0))","v":1},"1%"]
["ИТОГО (налоговые доходы):",{"$f":"SUM(B2:B7)","v":1179283.8}]
["Доходы от продажи активов",{"$f":"VLOOKUP(B$1,НД!$A:$N,MATCH(A9,НД!$A$1:$N$1,0),0)","v":763},{"$f":"IF(B9=0,\"\",RANK(B9,$B$9:$B$14,0))","v":4},{"$f":"IFERROR(INDEX($A$9:$A$14,MATCH(ROW(A1),$C$9:$C$14,0)),\"\")","v":"Доходы от оказания платных услуг и компенсации затрат государства"},{"$f":"IFERROR(INDEX($B$9:$B$14,MATCH(ROW(A1),$C$9:$C$14,0)),\"\")","v":58645},null,{"$f":"TEXT(E9,\"# ##0\") & \" тыс. руб.\"","v":"58 645 тыс. руб."},null,{"$f":"VLOOKUP(B$1,'%НД'!$A:$N,MATCH(A9,'%НД'!$A$1:$N$1,0),0)","v":1},{"$f":"INDEX($I$9:$I$14,MATCH(ROW(A1),$C$9:$C$14,0))","v":74},{"$f":"TEXT(J9,\"# ##0\") & \"%\"","v":"74%"}]
["Доходы от использования имущества, находящегося в муниципальной собственности",{"$f":"VLOOKUP(B$1,НД!$A:$N,MATCH(A10,НД!$A$1:$N$1,0),0)","v":18172},{"$f":"IF(B10=0,\"\",RANK(B10,$B$9:$B$14,0))","v":2},{"$f":"IFERROR(INDEX($A$9:$A$14,MATCH(ROW(A2),$C$9:$C$14,0)),\"\")","v":"Доходы от использования имущества, находящегося в муниципальной собственности"},{"$f":"IFERROR(INDEX($B$9:$B$14,MATCH(ROW(A2),$C$9:$C$14,0)),\"\")","v":18172},null,{"$f":"TEXT(E10,\"# ##0\") & \" тыс. руб.\"","v":"18 172 тыс. руб."},null,{"$f":"VLOOKUP(B$1,'%НД'!$A:$N,MATCH(A10,'%НД'!$A$1:$N$1,0),0)","v":23},{"$f":"INDEX($I$9:$I$14,MATCH(ROW(A2),$C$9:$C$14,0))","v":23},{"$f":"TEXT(J10,\"# ##0\") & \"%\"","v":"23%"}]
["Штрафы",{"$f":"VLOOKUP(B$1,НД!$A:$N,MATCH(A11,НД!$A$1:$N$1,0),0)","v":1900},3,"Штрафы",1900,null,"1 900 тыс. руб.",null,{"$f":"VLOOKUP(B$1,'%НД'!$A:$N,MATCH(A11,'%НД'!$A$1:$N$1,0),0)","v":2},2,"2%"]
["Прочие неналоговые доходы",{"$f":"VLOOKUP(B$1,НД!$A:$N,MATCH(A12,НД!$A$1:$N$1,0),0)","v":0},"","Доходы от продажи активов",763,null,"763 тыс. руб.",null,{"$f":"VLOOKUP(B$1,'%НД'!$A:$N,MATCH(A12,'%НД'!$A$1:$N$1,0),0)","v":0},1,"1%"]
["Плата за негативное воздействие на окружающую среду",{"$f":"VLOOKUP(B$1,НД!$A:$N,MATCH(A13,НД!$A$1:$N$1,0),0)","v":0},"","","",null,null,null,{"$f":"VLOOKUP(B$1,'%НД'!$A:$N,MATCH(A13,'%НД'!$A$1:$N$1,0),0)","v":0}]
["Доходы от оказания платных услуг и компенсации затрат государства",{"$f":"VLOOKUP(B$1,НД!$A:$N,MATCH(A14,НД!$A$1:$N$1,0),0)","v":58645},1,"","",null,null,null,{"$f":"VLOOKUP(B$1,'%НД'!$A:$N,MATCH(A14,'%НД'!$A$1:$N$1,0),0)","v":74}]
["ИТОГО (неналоговые доходы):",{"$f":"SUM(B9:B14)","v":79480}]
["Дотации бюджетам бюджетной системы Российской Федерации",{"$f":"VLOOKUP(B$1,НД!$A:$T,MATCH(A16,НД!$A$1:$T$1,0),0)","v":564719.4},{"$f":"IF(B16=0,\"\",RANK(B16,$B$16:$B$20,0))","v":2},{"$f":"IFERROR(INDEX($A$16:$A$20,MATCH(ROW(A1),$C$16:$C$20,0)),NA())","v":"Субвенции бюджетам бюджетной системы Российской Федерации"},{"$f":"IFERROR(INDEX($B$16:$B$20,MATCH(ROW(A1),$C$16:$C$20,0)),NA())","v":1476308.8},null,{"$f":"TEXT(E16,\"# ##0\") & \" тыс. руб.\"","v":"1 476 309 тыс. руб."}]
["Субсидии бюджетам бюджетной системы Российской Федерации (межбюджетные субсидии)",{"$f":"VLOOKUP(B$1,НД!$A:$T,MATCH(A17,НД!$A$1:$T$1,0),0)","v":404508.43},{"$f":"IF(B17=0,\"\",RANK(B17,$B$16:$B$20,0))","v":3},{"$f":"IFERROR(INDEX($A$16:$A$20,MATCH(ROW(A2),$C$16:$C$20,0)),NA())","v":"Дотации бюджетам бюджетной системы Российской Федерации"},{"$f":"IFERROR(INDEX($B$16:$B$20,MATCH(ROW(A2),$C$16:$C$20,0)),NA())","v":564719.4},null,{"$f":"TEXT(E17,\"# ##0\") & \" тыс. руб.\"","v":"564 719 тыс. руб."}]
["Субвенции бюджетам бюджетной системы Российской Федерации",{"$f":"VLOOKUP(B$1,НД!$A:$T,MATCH(A18,НД!$A$1:$T$1,0),0)","v":1476308.8},1,"Субсидии бюджетам бюджетной системы Российской Федерации (межбюджетные субсидии)",404508.43,null,"404 508 тыс. руб."]
["Иные межбюджетные трансферты",{"$f":"VLOOKUP(B$1,НД!$A:$T,MATCH(A19,НД!$A$1:$T$1,0),0)","v":98812.51},4,"Иные межбюджетные трансферты",98812.51,null,"98 813 тыс. руб."]
["Прочие безвозмездные поступления в бюджеты муниципальных округов",{"$f":"VLOOKUP(B$1,НД!$A:$T,MATCH(A20,НД!$A$1:$T$1,0),0)","v":450},5,"Прочие безвозмездные поступления в бюджеты муниципальных округов",450,null,"450 тыс. руб.",null,null,{"$f":"IFERROR(E20/SUM($E$16:$E$20),0)","v":1.7683124492096455E-4},{"$f":"IF(AND(J20>0,J20<0.01),\"<1%\",\"\")","v":"<1%"}]
["ИТОГО (безвозмездные поступления):",{"$f":"SUM(B16:B20)","v":2544799.1399999997}]

{"sheet":"%НД","index":25,"n_rows":4,"n_cols":21,"rows_kept":4,"cut":false,"hidden":true,"merged":[]}
["Столбец1","Налог на доходы физических лиц","Налог на совокупный доход","Земельный налог","Государственная пошлина","Налоги на имущество физических лиц","Акцизы по подакцизным товарам","ИТОГО Налоговые доходы","Доходы от продажи активов","Доходы от использования имущества, находящегося в муниципальной собственности","Штрафы","Прочие неналоговые доходы","Плата за негативное воздействие на окружающую среду","Доходы от оказания платных услуг и компенсации затрат государства","ИТОГО Неналоговые доходы","Дотации бюджетам бюджетной системы Российской Федерации","Субсидии бюджетам бюджетной системы Российской Федерации (межбюджетные субсидии)","Субвенции бюджетам бюджетной системы Российской Федерации","Иные межбюджетные трансферты","Прочие безвозмездные поступления в бюджеты муниципальных округов","ИТОГО Безвозмездные поступления"]
["2026 г. ПЛАН",77,10,3,2,1,7,{"$f":"SUM(B2:G2)","v":100},1,23,2,0,0,74,{"$f":"SUM(I2:N2)","v":100},null,null,null,null,null,{"$f":"SUM(P2:T2)","v":0}]
["2027 г. ПЛАН",76,10,3,2,1,8,{"$f":"SUM(B3:G3)","v":100},1,25,2,0,0,72,{"$f":"SUM(I3:N3)","v":100},null,null,null,null,null,{"$f":"SUM(P3:T3)","v":0}]
["2028 г. ПЛАН",77,9,3,2,1,8,{"$f":"SUM(B4:G4)","v":100},1,55,1,0,0,43,{"$f":"SUM(I4:N4)","v":100},null,null,null,null,null,{"$f":"SUM(P4:T4)","v":0}]

{"sheet":"НД","index":26,"n_rows":9,"n_cols":21,"rows_kept":9,"cut":false,"hidden":true,"merged":[[7,15,7,16]]}
["Столбец1","Налог на доходы физических лиц","Налог на совокупный доход","Земельный налог","Государственная пошлина","Налоги на имущество физических лиц","Акцизы по подакцизным товарам","ИТОГО Налоговые доходы","Доходы от продажи активов","Доходы от использования имущества, находящегося в муниципальной собственности","Штрафы","Прочие неналоговые доходы","Плата за негативное воздействие на окружающую среду","Доходы от оказания платных услуг и компенсации затрат государства","ИТОГО Неналоговые доходы","Дотации бюджетам бюджетной системы Российской Федерации","Субсидии бюджетам бюджетной системы Российской Федерации (межбюджетные субсидии)","Субвенции бюджетам бюджетной системы Российской Федерации","Иные межбюджетные трансферты","Прочие безвозмездные поступления в бюджеты муниципальных округов","ИТОГО Безвозмездные поступления"]
["2026 г. ПЛАН",910000,120394,32215,26556,14724,75394.8,{"$f":"SUM(B2:G2)","v":1179283.8},763,18172,1900,0,0,58645,{"$f":"SUM(I2:N2)","v":79480},564719.4,404508.43,1476308.8,98812.51,450,{"$f":"SUM(P2:T2)","v":2544799.1399999997}]
["2027 г. ПЛАН",952000,121310,32259,26767,14867,103784.9,{"$f":"SUM(B3:G3)","v":1250987.8999999999},844,19957,1900,0,0,58661,{"$f":"SUM(I3:N3)","v":81362},0,329521.21000000002,1480975.1,102185.1,0,{"$f":"SUM(P3:T3)","v":1912681.4100000001}]
["2028 г. ПЛАН",992000,122695,32299,26963,15018,108258,{"$f":"SUM(B4:G4)","v":1297233},915,76095,1900,0,0,58667,{"$f":"SUM(I4:N4)","v":137577},13562.4,207129.8,1488334.8,102259,0,{"$f":"SUM(P4:T4)","v":1811286}]
[]
[]
[null,null,null,null,null,null,null,null,null,null,null,null,null,null,null,null,"в строке 2026 заменили ячейку S2:",null,"вместо 98812,49 написали 98812,51"]
[null,null,null,null,null,null,null,null,null,null,null,null,null,null,null,"в строке 2028 заменили Р4",null,null,13562.5,13562.4]
[null,null,null,null,null,null,null,null,null,null,null,null,null,null,null,null,null,null,207129.7,207129.8]

{"sheet":"Расходы","index":27,"n_rows":4,"n_cols":2,"rows_kept":4,"cut":false,"hidden":true,"merged":[]}
[7,{"$f":"INDEX(Структура!A2:A12, A1)","v":"Образование (тыс. руб.)"}]
["2026 г. ПЛАН",{"$f":"VLOOKUP(B$1,Структура!$A:$Q,MATCH(A2,Структура!$A$1:$Q$1,0),0)","v":2183826.7999999998}]
["2027 г. ПЛАН",{"$f":"VLOOKUP(B$1,Структура!$A:$Q,MATCH(A3,Структура!$A$1:$Q$1,0),0)","v":1998187.9}]
["2028 г. ПЛАН",{"$f":"VLOOKUP(B$1,Структура!$A:$Q,MATCH(A4,Структура!$A$1:$Q$1,0),0)","v":2060749.4}]

{"sheet":"Доходы1","index":28,"n_rows":14,"n_cols":2,"rows_kept":14,"cut":false,"hidden":true,"merged":[]}
[1,{"$f":"INDEX(Структура!A14:A16, A1)","v":"Налоговые доходы (тыс. руб.)"}]
["2026 г. ПЛАН",{"$f":"VLOOKUP(B$1,Структура!$A:$Q,MATCH(A2,Структура!$A$1:$Q$1,0),0)","v":1179283.8}]
["2027 г. ПЛАН",{"$f":"VLOOKUP(B$1,Структура!$A:$Q,MATCH(A3,Структура!$A$1:$Q$1,0),0)","v":1250987.8999999999}]
["2028 г. ПЛАН",{"$f":"VLOOKUP(B$1,Структура!$A:$Q,MATCH(A4,Структура!$A$1:$Q$1,0),0)","v":1297233}]
[]
[1,"Неналоговые доходы (тыс. руб.)"]
["2025 г. ПЛАН",28440.6]
["2026 г. ПЛАН",29278.6]
["2027 г. ПЛАН",29784.3]
[]
[3,"Безвозмездные поступления"]
["2025 г. ПЛАН",907495.7]
["2026 г. ПЛАН",736795]
["2027 г. ПЛАН",796006.9]

{"sheet":"Структура","index":29,"n_rows":17,"n_cols":4,"rows_kept":17,"cut":false,"hidden":true,"merged":[]}
["Столбец1","2026 г. ПЛАН","2027 г. ПЛАН","2028 г. ПЛАН"]
["Общегосударственные вопросы (тыс. руб.)",705518.7,498923.5,498924.4]
["Национальная  оборона (тыс. руб.)",5306.5,5857.1,7515.9]
["Национальная  безопасность и правоохранительная деятельность (тыс. руб.)",76697,45000,45000]
["Национальная экономика (тыс. руб.)",415967.4,277140.2,281613.3]
["Жилищно-коммунальное хозяйство (тыс. руб.)",234774.2,153138.9,16225]
["Охрана окружающей среды (тыс. руб.)",4812.8999999999996,2320.9,2320.9]
["Образование (тыс. руб.)",2183826.7999999998,1998187.9,2060749.4]
["Культура и Кинематография (тыс. руб.)",288399.2,181880.2,181885.3]
["Социальная политика (тыс. руб.)",41622.800000000003,37844.9,37844.9]
["Физическая культура и спорт (тыс. руб.)",193416.1,73682.3,73682.3]
["Обслуживание государственного внутреннего и муниципального долга (тыс. руб.)",300,300,300]
["ИТОГО (расходы):",{"$f":"SUM(B2:B12)","v":4150641.6},{"$f":"SUM(C2:C12)","v":3274275.9},{"$f":"SUM(D2:D12)","v":3206061.3999999994}]
["Налоговые доходы (тыс. руб.)",1179283.8,1250987.8999999999,1297233]
["Неналоговые доходы (тыс. руб.)",79480,81362,137577]
["Безвозмездные поступления (тыс. руб.)",1877102.1,1687882,2194754.5]
["ИТОГО (доходы):",{"$f":"SUM(B14:B16)","v":3135865.9000000004},{"$f":"SUM(C14:C16)","v":3020231.9},{"$f":"SUM(D14:D16)","v":3629564.5}]